fUSD/lending_fUSD_20250511
["ID","MTS","AMOUNT","RATE_DAILY","PERIOD"]
[360698674,1746936643192,-400.0,0.00019378,2]
[360698675,1746936643202,-400.0,0.00019378,2]
[360698676,1746936643212,-260.25,0.00019378,2]
[360698677,1746936643222,-407.39545967,0.00019378,2]
[360698678,1746936643232,-400.0,0.00019378,2]
[360698679,1746936643245,-400.0,0.00019378,2]
[360698680,1746936643255,-323.11,0.00019378,2]
[360698681,1746936643265,-400.0,0.00019378,2]
[360698682,1746936643275,-400.0,0.00019378,2]
[360698683,1746936643285,-323.95,0.00019378,2]
[360698684,1746936643294,-257.91,0.00019378,2]
[360698685,1746936643303,-400.0,0.00019378,2]
[360698686,1746936643313,-403.64219718,0.00019378,2]
[360698687,1746936643322,-400.0,0.00019378,2]
[360698688,1746936643332,-408.13232918,0.00019378,2]
[360698689,1746936643341,-400.0,0.00019378,2]
[360698690,1746936643351,-844.87,0.00019378,2]
[360698691,1746936643360,-400.0,0.00019378,2]
[360698692,1746936643371,-469.27,0.00019378,2]
[360698693,1746936643380,-400.0,0.00019378,2]
[360698694,1746936643389,-202.12645255,0.00019378,2]
[360698695,1746936643399,-162.1,0.00019378,2]
[360698696,1746936643408,-408.30097148,0.00019378,2]
[360698697,1746936643418,-396.63418577,0.00019378,2]
[360698698,1746936643427,-400.0,0.00019378,2]
[360698699,1746936643436,-424.4,0.00019378,2]
[360698700,1746936643446,-400.0,0.00019378,2]
[360698701,1746936643455,-400.0,0.00019378,2]
[360698702,1746936643465,-504.86388255,0.00019378,2]
[360698703,1746936643475,-400.0,0.00019378,2]
[360698704,1746936643484,-400.0,0.00019378,2]
[360698705,1746936643497,-478.85,0.00019378,2]
[360698706,1746936643506,-450.09650782,0.00019378,2]
[360698707,1746936643515,-400.0,0.00019378,2]
[360698708,1746936643524,-400.0,0.00019378,2]
[360698709,1746936643534,-400.57117303,0.00019378,2]
[360698710,1746936643543,-509.06,0.00019378,2]
[360698711,1746936643552,-400.0,0.00019378,2]
[360698712,1746936643562,-400.0,0.00019378,2]
[360698713,1746936643571,-400.0,0.00019378,2]
[360698714,1746936643580,-400.0,0.00019378,2]
[360698715,1746936643590,-400.0,0.00019378,2]
[360698716,1746936643599,-401.15229358,0.00019378,2]
[360698717,1746936643608,-158.45020496,0.00019378,2]
[360698718,1746936643617,-400.0,0.00019378,2]
[360698719,1746936643627,-400.0,0.00019378,2]
[360698720,1746936643636,-8893.43,0.00019378,2]
[360698721,1746936643646,-400.0,0.00019378,2]
[360698722,1746936643655,-505.31271383,0.00019378,2]
[360698723,1746936643665,-400.0,0.00019378,2]
[360698724,1746936643674,-407.01661973,0.00019378,2]
[360698725,1746936643684,-400.0,0.00019378,2]
[360698726,1746936643694,-400.0,0.00019378,2]
[360698727,1746936643703,-400.0,0.00019378,2]
[360698728,1746936643712,-400.0,0.00019378,2]
[360698729,1746936643721,-412.21178331,0.00019378,2]
[360698730,1746936643731,-400.0,0.00019378,2]
[360698731,1746936643744,-400.0,0.00019378,2]
[360698732,1746936643753,-400.0,0.00019378,2]
[360698733,1746936643763,-421.68861597,0.00019378,2]
[360698734,1746936643776,-400.0,0.00019378,2]
[360698735,1746936643786,-400.0,0.00019378,2]
[360698736,1746936643796,-400.0,0.00019378,2]
[360698737,1746936643807,-400.0,0.00019378,2]
[360698738,1746936643817,-472.94716875,0.00019378,2]
[360698739,1746936643826,-400.0,0.00019378,2]
[360698740,1746936643836,-400.0,0.00019378,2]
[360698741,1746936643845,-400.0,0.00019378,2]
[360698742,1746936643857,-400.0,0.00019378,2]
[360698743,1746936643868,-400.0,0.00019378,2]
[360698744,1746936643877,-400.0,0.00019378,2]
[360698745,1746936643888,-400.84126429,0.00019378,2]
[360698746,1746936643897,-400.0,0.00019378,2]
[360698747,1746936643907,-400.0,0.00019378,2]
[360698748,1746936643917,-404.2596953,0.00019378,2]
[360698749,1746936643927,-400.0,0.00019378,2]
[360698750,1746936643937,-412.59773553,0.00019378,2]
[360698751,1746936643947,-692.95,0.00019378,2]
[360698752,1746936643956,-400.0,0.00019378,2]
[360698753,1746936643966,-400.0,0.00019378,2]
[360698754,1746936643976,-400.0,0.00019378,2]
[360698755,1746936643986,-437.60420379,0.00019378,2]
[360698756,1746936643999,-400.0,0.00019378,2]
[360698757,1746936644009,-400.0,0.00019378,2]
[360698758,1746936644018,-400.0,0.00019378,2]
[360698759,1746936644028,-409.07699651,0.00019378,2]
[360698760,1746936644037,-400.0,0.00019378,2]
[360698761,1746936644047,-400.0,0.00019378,2]
[360698762,1746936644057,-400.0,0.00019378,2]
[360698763,1746936644067,-400.0,0.00019378,2]
[360698764,1746936644076,-400.0,0.00019378,2]
[360698765,1746936644086,-400.0,0.00019378,2]
[360698766,1746936644096,-513.4536818,0.00019378,2]
[360698767,1746936644105,-414.84991578,0.00019378,2]
[360698768,1746936644115,-1040.01,0.00019378,2]
[360698769,1746936644124,-400.0,0.00019378,2]
[360698770,1746936644133,-400.0,0.00019378,2]
[360698771,1746936644144,-411.78376906,0.00019378,2]
[360698772,1746936644153,-444.39014953,0.00019378,2]
[360698773,1746936644163,-673.36,0.00019378,2]
[360698774,1746936644173,-400.0,0.00019378,2]
[360698775,1746936644182,-400.0,0.00019378,2]
[360698776,1746936644192,-401.55872465,0.00019378,2]
[360698777,1746936644203,-400.0,0.00019378,2]
[360698778,1746936644215,-450.0,0.00019378,2]
[360698779,1746936644224,-402.01947021,0.00019378,2]
[360698780,1746936644233,-401.28529751,0.00019378,2]
[360698781,1746936644244,-405.15700404,0.00019378,2]
[360698782,1746936644253,-400.0,0.00019378,2]
[360698783,1746936644262,-400.0,0.00019378,2]
[360698784,1746936644273,-400.0,0.00019378,2]
[360698785,1746936644282,-400.0,0.00019378,2]
[360698786,1746936644292,-406.09029165,0.00019378,2]
[360698787,1746936644301,-405.66792712,0.00019378,2]
[360698788,1746936644310,-477.28,0.00019378,2]
[360698789,1746936644320,-400.0,0.00019378,2]
[360698790,1746936644331,-400.0,0.00019378,2]
[360698791,1746936644342,-1197.28,0.00019378,2]
[360698792,1746936644351,-483.96244058,0.00019378,2]
[360698793,1746936644361,-400.0,0.00019378,2]
[360698794,1746936644370,-400.0,0.00019378,2]
[360698795,1746936644380,-400.0,0.00019378,2]
[360698796,1746936644390,-400.0,0.00019378,2]
[360698797,1746936644399,-400.0,0.00019378,2]
[360698798,1746936644408,-619.64,0.00019378,2]
[360698799,1746936644418,-400.0,0.00019378,2]
[360698800,1746936644427,-400.0,0.00019378,2]
[360698801,1746936644437,-406.9899754,0.00019378,2]
[360698802,1746936644446,-400.0,0.00019378,2]
[360698803,1746936644455,-408.95941925,0.00019378,2]
[360698804,1746936644465,-500.0,0.00019378,2]
[360698805,1746936644474,-414.53144316,0.00019378,2]
[360698806,1746936644483,-400.0,0.00019378,2]
[360698807,1746936644495,-400.0,0.00019378,2]
[360698808,1746936644504,-408.30813277,0.00019378,2]
[360698809,1746936644513,-400.0,0.00019378,2]
[360698810,1746936644523,-400.0,0.00019378,2]
[360698811,1746936644532,-400.0,0.00019378,2]
[360698812,1746936644544,-400.0,0.00019378,2]
[360698813,1746936644555,-402.497514,0.00019378,2]
[360698814,1746936644564,-400.0,0.00019378,2]
[360698815,1746936644574,-400.0,0.00019378,2]
[360698816,1746936644583,-430.13714575,0.00019378,2]
[360698817,1746936644592,-400.0,0.00019378,2]
[360698818,1746936644602,-400.0,0.00019378,2]
[360698819,1746936644612,-400.0,0.00019378,2]
[360698820,1746936644621,-400.0,0.00019378,2]
[360698821,1746936644630,-400.0,0.00019378,2]
[360698822,1746936644640,-400.0,0.00019378,2]
[360698823,1746936644653,-408.85886614,0.00019378,2]
[360698824,1746936644663,-524.83764877,0.00019378,2]
[360698825,1746936644673,-400.0,0.00019378,2]
[360698826,1746936644683,-421.08,0.00019378,2]
[360698827,1746936644692,-400.0,0.00019378,2]
[360698828,1746936644702,-400.0,0.00019378,2]
[360698829,1746936644711,-400.0,0.00019378,2]
[360698830,1746936644720,-400.0,0.00019378,2]
[360698831,1746936644730,-400.0,0.00019378,2]
[360698832,1746936644742,-400.0,0.00019378,2]
[360698833,1746936644751,-400.0,0.00019378,2]
[360698834,1746936644762,-400.0,0.00019378,2]
[360698835,1746936644774,-400.0,0.00019378,2]
[360698836,1746936644783,-400.0,0.00019378,2]
[360698837,1746936644792,-399.18877953,0.00019378,2]
[360698838,1746936644802,-400.0,0.00019378,2]
[360698839,1746936644818,-400.0,0.00019378,2]
[360698840,1746936644828,-619.51,0.00019378,2]
[360698841,1746936644837,-400.0,0.00019378,2]
[360698842,1746936644849,-400.0,0.00019378,2]
[360698843,1746936644859,-400.0,0.00019378,2]
[360698844,1746936644869,-408.90331804,0.00019378,2]
[360698845,1746936644879,-403.6834351,0.00019378,2]
[360698846,1746936644889,-400.0,0.00019378,2]
[360698847,1746936644898,-400.0,0.00019378,2]
[360698848,1746936644910,-400.0,0.00019378,2]
[360698849,1746936644919,-403.92312442,0.00019378,2]
[360698850,1746936644929,-400.0,0.00019378,2]
[360698851,1746936644939,-401.60996863,0.00019378,2]
[360698852,1746936644949,-400.0,0.00019378,2]
[360698853,1746936644958,-400.0,0.00019378,2]
[360698854,1746936644969,-403.24131704,0.00019378,2]
[360698855,1746936644980,-400.0,0.00019378,2]
[360698856,1746936644989,-778.74,0.00019378,2]
[360698857,1746936645001,-400.0,0.00019378,2]
[360698858,1746936645011,-400.0,0.00019378,2]
[360698859,1746936645020,-406.51578195,0.00019378,2]
[360698860,1746936645029,-400.0,0.00019378,2]
[360698861,1746936645039,-400.0,0.00019378,2]
[360698862,1746936645048,-400.0,0.00019378,2]
[360698863,1746936645057,-502.83825937,0.00019378,2]
[360698864,1746936645067,-758.65,0.00019378,2]
[360698865,1746936645076,-402.8393954,0.00019378,2]
[360698866,1746936645086,-400.0,0.00019378,2]
[360698867,1746936645095,-888.77,0.00019378,2]
[360698868,1746936645105,-504.60617246,0.00019378,2]
[360698869,1746936645115,-400.0,0.00019378,2]
[360698870,1746936645124,-400.0,0.00019378,2]
[360698871,1746936645133,-478.93141351,0.00019378,2]
[360698872,1746936645143,-400.0,0.00019378,2]
[360698873,1746936645152,-402.54904221,0.00019378,2]
[360698874,1746936645162,-400.0,0.00019378,2]
[360698875,1746936645172,-400.0,0.00019378,2]
[360698876,1746936645181,-400.0,0.00019378,2]
[360698877,1746936645191,-402.002299,0.00019378,2]
[360698878,1746936645200,-3074.879984,0.00019378,2]
[360698879,1746936645210,-400.0,0.00019378,2]
[360698880,1746936645220,-400.0,0.00019378,2]
[360698881,1746936645229,-400.0,0.00019378,2]
[360698882,1746936645238,-402.816649,0.00019378,2]
[360698883,1746936645251,-400.0,0.00019378,2]
[360698884,1746936645261,-400.0,0.00019378,2]
[360698885,1746936645270,-400.0,0.00019378,2]
[360698886,1746936645280,-400.0,0.00019378,2]
[360698887,1746936645291,-400.0,0.00019378,2]
[360698888,1746936645301,-408.51732215,0.00019378,2]
[360698889,1746936645311,-408.14977196,0.00019378,2]
[360698890,1746936645321,-400.0,0.00019378,2]
[360698891,1746936645331,-400.0,0.00019378,2]
[360698892,1746936645341,-418.40440769,0.00019378,2]
[360698893,1746936645352,-400.0,0.00019378,2]
[360698894,1746936645361,-13325.901479,0.00019378,2]
[360698895,1746936645370,-400.0,0.00019378,2]
[360698896,1746936645380,-400.0,0.00019378,2]
[360698897,1746936645390,-428.62613942,0.00019378,2]
[360698898,1746936645399,-536.16350236,0.00019378,2]
[360698899,1746936645409,-403.18767161,0.00019378,2]
[360698900,1746936645419,-2355.594611,0.00019378,2]
[360698901,1746936645428,-400.0,0.00019378,2]
[360698902,1746936645438,-400.0,0.00019378,2]
[360698903,1746936645448,-245.97508557,0.00019378,2]
[360698904,1746936645457,-400.0,0.00019378,2]
[360698905,1746936645467,-400.0,0.00019378,2]
[360698906,1746936645476,-400.0,0.00019378,2]
[360698907,1746936645485,-420.26,0.00019378,2]
[360698908,1746936645497,-334.77036921,0.00019378,2]
[360698909,1746936645507,-206670.1531,0.00019379,2]
[360698910,1746936645516,-536.16350234,0.00019389,2]
[360698911,1746936645526,-1131.43145409,0.000194,2]
[360698912,1746936645535,-536.16350234,0.000194,2]
[360698913,1746936645545,-11013.40020595,0.00019416,2]
[360698914,1746936645555,-6264.81288696,0.00019417,2]
[360698915,1746936645564,-325.48343158,0.00019433,2]
[360698916,1746936645574,-400.0,0.00019435,2]
[360698917,1746936645584,-300.91439775,0.00019435,2]
[360698918,1746936645594,-326.61917899,0.00019435,2]
[360698919,1746936645603,-400.0,0.00019435,2]
[360698920,1746936645613,-400.0,0.00019435,2]
[360698921,1746936645623,-400.0,0.00019435,2]
[360698922,1746936645633,-400.0,0.00019435,2]
[360698923,1746936645644,-65.25811928,0.00019435,2]
[360698924,1746936645667,-482.30169794,0.00019435,2]
[360698925,1746936645850,-857.22018278,0.00019435,2]
[360698926,1746936645861,-400.0,0.00019435,2]
[360698927,1746936645871,-400.0,0.00019435,2]
[360698928,1746936645880,-400.0,0.00019435,2]
[360698929,1746936645891,-400.0,0.00019435,2]
[360698930,1746936645902,-400.0,0.00019435,2]
[360698931,1746936645912,-400.0,0.00019435,2]
[360698932,1746936645922,-400.0,0.00019435,2]
[360698933,1746936645932,-400.0,0.00019435,2]
[360698934,1746936645941,-400.0,0.00019435,2]
[360698935,1746936645951,-400.0,0.00019435,2]
[360698936,1746936645961,-400.0,0.00019435,2]
[360698937,1746936645970,-400.0,0.00019435,2]
[360698938,1746936645980,-400.0,0.00019435,2]
[360698939,1746936645989,-620.19,0.00019435,2]
[360698940,1746936646006,-400.0,0.00019435,2]
[360698941,1746936646016,-400.0,0.00019435,2]
[360698942,1746936646025,-400.0,0.00019435,2]
[360698943,1746936646034,-569.82,0.00019435,2]
[360698944,1746936646044,-400.0,0.00019435,2]
[360698945,1746936646054,-400.0,0.00019435,2]
[360698946,1746936646063,-183.04,0.00019435,2]
[360698947,1746936646072,-400.0,0.00019435,2]
[360698948,1746936646081,-16148.52,0.00019435,2]
[360698949,1746936646090,-52.52648725,0.00019435,2]
[360698950,1746936646238,-347.47351275,0.00019435,2]
[360698951,1746936646252,-400.0,0.00019435,2]
[360698952,1746936646262,-400.0,0.00019435,2]
[360698953,1746936646271,-400.0,0.00019435,2]
[360698954,1746936646282,-400.0,0.00019435,2]
[360698955,1746936646291,-400.0,0.00019435,2]
[360698956,1746936646301,-190.50460684,0.00019435,2]
[360698958,1746936646335,-209.49539316,0.00019435,2]
[360698959,1746936646344,-400.0,0.00019435,2]
[360698960,1746936646354,-400.0,0.00019435,2]
[360698961,1746936646363,-400.0,0.00019435,2]
[360698962,1746936646373,-400.0,0.00019435,2]
[360698963,1746936646382,-445.33,0.00019435,2]
[360698964,1746936646392,-400.0,0.00019435,2]
[360698965,1746936646401,-400.0,0.00019435,2]
[360698966,1746936646412,-1060.56,0.00019435,2]
[360698967,1746936646421,-400.0,0.00019435,2]
[360698969,1746936646431,-168.17992522,0.00019453,2]
[360698970,1746936646440,-515.39859977,0.00019471,2]
[360698971,1746936646451,-225.0,0.00019472,2]
[360698972,1746936646460,-500.62591035,0.00019473,2]
[360698973,1746936646469,-500.0,0.00019473,2]
[360698974,1746936646478,-400.0,0.00019477,2]
[360698975,1746936646487,-400.0,0.00019477,2]
[360698976,1746936646501,-232.79372242,0.00019477,2]
[360698977,1746936646511,-400.0,0.00019477,2]
[360698978,1746936646520,-371.08214689,0.00019477,2]
[360698979,1746936646530,-400.0,0.00019477,2]
[360698980,1746936646540,-202.72955566,0.00019478,2]
[360698981,1746936646549,-20150.23416791,0.00019478,2]
[360698982,1746936646561,-299.73565,0.00019478,2]
[360698983,1746936646572,-17352.86721318,0.00019478,2]
[360698984,1746936646584,-24556.0092636,0.00019478,2]
[360698985,1746936646596,-8420.25690152,0.00019478,2]
[360698987,1746936646879,-27173.34977809,0.00019478,2]
[360698988,1746936790000,-250.0,0.00019375,2]
[360698989,1746936790027,-200.0,0.00019375,2]
[360698990,1746936790055,-400.0,0.00019377,2]
[360698991,1746936790081,-401.10069151,0.00019377,2]
[360698992,1746936790110,-400.0,0.00019377,2]
[360698993,1746936790137,-449.71,0.00019377,2]
[360698994,1746936790164,-400.0,0.00019377,2]
[360698995,1746936790190,-400.0,0.00019377,2]
[360698996,1746936790219,-400.0,0.00019377,2]
[360698997,1746936790245,-526.53,0.00019377,2]
[360698998,1746936790273,-400.0,0.00019377,2]
[360698999,1746936790300,-157.602147,0.00019377,2]
[360699000,1746936790327,-400.0,0.00019377,2]
[360699001,1746936790353,-1287.72,0.00019377,2]
[360699002,1746936790381,-421.45212126,0.00019377,2]
[360699003,1746936790409,-400.0,0.00019377,2]
[360699004,1746936790437,-298.85251,0.00019377,2]
[360699005,1746936790465,-400.0,0.00019377,2]
[360699006,1746936790492,-487.85,0.00019377,2]
[360699007,1746936790522,-400.0,0.00019377,2]
[360699008,1746936790550,-400.0,0.00019377,2]
[360699009,1746936790576,-400.0,0.00019377,2]
[360699010,1746936790603,-414.44122591,0.00019377,2]
[360699011,1746936790629,-400.0,0.00019377,2]
[360699012,1746936790656,-8522.87,0.00019377,2]
[360699013,1746936790685,-1381.87130432,0.00019377,2]
[360699014,1746936960394,900.0,0.00030136,120]
[360699017,1746937282794,1000.0,0.00030137,120]
[360699019,1746937549384,177.26,0.00013699,2]
[360699020,1746937632115,-653.64166073,0.0001836,2]
[360699021,1746937632137,-200.0,0.00018388,2]
[360699022,1746937632160,-257.05001275,0.00018434,2]
[360699023,1746937679143,250.0,0.00017,2]
[360699024,1746937692692,780.39,0.00016451,2]
[360699045,1746937832191,-1604.059139,0.00018298,2]
[360699047,1746937832201,-200.0,0.0001839,2]
[360699049,1746937832212,-250.31849951,0.00018434,2]
[360699067,1746937832519,-492.63148774,0.00018434,2]
[360699068,1746937832528,-200.0,0.00018434,2]
[360699069,1746937832538,-622.65140348,0.00018459,2]
[360699074,1746937838277,-577.34859652,0.00018459,2]
[360699075,1746937838287,-300.0,0.0001846,2]
[360699076,1746937838298,-300.0,0.0001846,2]
[360699077,1746937838307,-9722.34549983,0.00018461,2]
[360699078,1746937838319,-6129.88,0.00018461,2]
[360699079,1746937838331,-3052.43450017,0.00018461,2]
[360699080,1746937838340,-407.91,0.00018469,2]
[360699081,1746937838349,-253.93,0.00018474,2]
[360699082,1746937838358,-250.0,0.00018474,2]
[360699083,1746937838368,-175.5,0.00018474,2]
[360699084,1746937838377,-150.0,0.00018487,2]
[360699085,1746937838387,-780.39,0.00018715,2]
[360699086,1746937838396,-238.85622132,0.000189,2]
[360699087,1746937838406,-500.0,0.00018904,2]
[360699088,1746937838416,-300.0,0.00019,2]
[360699089,1746937838426,-150.26,0.00019178,2]
[360699090,1746937838436,-1010.86624109,0.000192,2]
[360699091,1746937838729,-193.13375891,0.000192,2]
[360699092,1746937838739,-3272.88687509,0.00019278,2]
[360699093,1746937838980,-729.49012491,0.00019278,2]
[360699094,1746937838990,-871.4520024,0.000193,2]
[360699095,1746937840596,-622.5479976,0.000193,2]
[360699096,1746937840606,-207.4,0.00019365,2]
[360699097,1746937840616,-214.37073772,0.00019366,2]
[360699098,1746937840625,-668.65185757,0.00019366,2]
[360699099,1746937840635,-1000.0,0.00019377,2]
[360699100,1746937840644,-400.0,0.00019377,2]
[360699101,1746937840653,-400.0,0.00019377,2]
[360699102,1746937840663,-400.0,0.00019377,2]
[360699103,1746937840672,-169.17782866,0.00019377,2]
[360699104,1746937840682,-3799.2634,0.00019378,2]
[360699105,1746937840692,-416.12192721,0.00019378,2]
[360699106,1746937840701,-1000.0,0.00019378,2]
[360699107,1746937840712,-1000.0,0.000194,2]
[360699108,1746937840721,-166.33,0.00019466,2]
[360699109,1746937840730,-553.3,0.00019467,2]
[360699110,1746937840741,-400.0,0.00019472,2]
[360699111,1746937840752,-340.38729258,0.00019472,2]
[360699112,1746937840761,-358.07943432,0.00019473,2]
[360699113,1746937840771,-288.17669469,0.00019473,2]
[360699114,1746937840780,-500.33766418,0.00019473,2]
[360699115,1746937840790,-500.0,0.00019473,2]
[360699116,1746937840801,-501.09718716,0.00019473,2]
[360699117,1746937840812,-500.0,0.00019473,2]
[360699118,1746937840821,-400.0,0.00019475,2]
[360699119,1746937840831,-400.0,0.00019475,2]
[360699120,1746937840841,-400.0,0.00019475,2]
[360699121,1746937840850,-400.0,0.00019475,2]
[360699122,1746937840859,-400.0,0.00019475,2]
[360699123,1746937840868,-400.0,0.00019475,2]
[360699124,1746937840878,-400.0,0.00019475,2]
[360699125,1746937840886,-520.5685883,0.00019475,2]
[360699126,1746937840896,-401.07758679,0.00019475,2]
[360699127,1746937840905,-400.0,0.00019475,2]
[360699128,1746937840915,-400.0,0.00019475,2]
[360699129,1746937840924,-400.0,0.00019475,2]
[360699130,1746937840933,-400.0,0.00019475,2]
[360699131,1746937840943,-651.88,0.00019475,2]
[360699132,1746937840953,-402.23700922,0.00019475,2]
[360699133,1746937840962,-1024.17,0.00019475,2]
[360699134,1746937840971,-401.10069151,0.00019475,2]
[360699135,1746937840980,-400.0,0.00019475,2]
[360699136,1746937840990,-400.0,0.00019475,2]
[360699137,1746937840999,-400.0,0.00019475,2]
[360699138,1746937841009,-1154.87,0.00019475,2]
[360699139,1746937841018,-617.25,0.00019475,2]
[360699140,1746937841027,-400.0,0.00019475,2]
[360699141,1746937841036,-400.0,0.00019475,2]
[360699142,1746937841046,-400.0,0.00019475,2]
[360699143,1746937841056,-400.0,0.00019475,2]
[360699144,1746937841065,-568.0,0.00019475,2]
[360699145,1746937841074,-400.0,0.00019475,2]
[360699146,1746937841083,-400.0,0.00019475,2]
[360699147,1746937841092,-400.0,0.00019475,2]
[360699148,1746937841102,-400.0,0.00019475,2]
[360699149,1746937841111,-400.0,0.00019475,2]
[360699150,1746937841120,-400.0,0.00019475,2]
[360699151,1746937841129,-170.72772197,0.00019475,2]
[360699152,1746937841144,-229.27227803,0.00019475,2]
[360699153,1746937841153,-615.36,0.00019475,2]
[360699154,1746937841162,-252.1219081,0.00019475,2]
[360699155,1746937841172,-402.66,0.00019475,2]
[360699156,1746937841183,-752.67,0.00019475,2]
[360699157,1746937841194,-400.0,0.00019475,2]
[360699158,1746937841204,-507.51,0.00019475,2]
[360699159,1746937841214,-157.602147,0.00019475,2]
[360699160,1746937841224,-845.86,0.00019475,2]
[360699161,1746937841234,-597.705021,0.00019475,2]
[360699162,1746937841243,-400.0,0.00019475,2]
[360699163,1746937841255,-400.0,0.00019475,2]
[360699164,1746937841264,-264.30317948,0.00019475,2]
[360699165,1746937841274,-400.0,0.00019475,2]
[360699166,1746937841282,-1698.96,0.00019475,2]
[360699167,1746937841291,-400.0,0.00019475,2]
[360699168,1746937841300,-412.94,0.00019475,2]
[360699169,1746937841309,-400.0,0.00019475,2]
[360699170,1746937841319,-2523.910135,0.00019475,2]
[360699171,1746937841329,-400.0,0.00019475,2]
[360699172,1746937841338,-400.0,0.00019475,2]
[360699173,1746937841347,-8085.589676,0.00019475,2]
[360699174,1746937841356,-400.0,0.00019475,2]
[360699175,1746937841365,-400.0,0.00019475,2]
[360699176,1746937841375,-400.0,0.00019475,2]
[360699177,1746937841384,-400.0,0.00019475,2]
[360699178,1746937841393,-400.0,0.00019475,2]
[360699179,1746937841402,-304.126304,0.00019475,2]
[360699180,1746937841411,-500.0,0.00019475,2]
[360699181,1746937841421,-500.0,0.00019475,2]
[360699182,1746937841430,-500.0,0.00019475,2]
[360699183,1746937841439,-576.45114525,0.00019475,2]
[360699184,1746937841449,-400.0,0.00019476,2]
[360699185,1746937841458,-400.0,0.00019476,2]
[360699186,1746937841467,-400.0,0.00019476,2]
[360699187,1746937841477,-400.0,0.00019476,2]
[360699188,1746937841486,-400.0,0.00019476,2]
[360699189,1746937841496,-400.0,0.00019476,2]
[360699190,1746937841506,-400.0,0.00019476,2]
[360699191,1746937841516,-400.0,0.00019476,2]
[360699192,1746937841526,-400.0,0.00019476,2]
[360699193,1746937841536,-400.0,0.00019476,2]
[360699194,1746937841545,-400.0,0.00019476,2]
[360699195,1746937841554,-400.0,0.00019476,2]
[360699196,1746937841563,-400.0,0.00019476,2]
[360699197,1746937841573,-400.0,0.00019476,2]
[360699198,1746937841582,-400.0,0.00019476,2]
[360699199,1746937841592,-400.0,0.00019476,2]
[360699200,1746937841601,-400.0,0.00019476,2]
[360699201,1746937841610,-457.37,0.00019476,2]
[360699202,1746937841620,-400.0,0.00019476,2]
[360699203,1746937841629,-400.0,0.00019476,2]
[360699204,1746937841638,-400.0,0.00019476,2]
[360699205,1746937841648,-400.0,0.00019476,2]
[360699206,1746937841657,-400.0,0.00019476,2]
[360699207,1746937841666,-400.0,0.00019476,2]
[360699208,1746937841675,-400.0,0.00019476,2]
[360699209,1746937841684,-400.0,0.00019476,2]
[360699210,1746937841693,-400.0,0.00019476,2]
[360699211,1746937841703,-400.0,0.00019476,2]
[360699212,1746937841712,-400.0,0.00019476,2]
[360699213,1746937841722,-400.0,0.00019476,2]
[360699214,1746937841731,-400.0,0.00019476,2]
[360699215,1746937841740,-400.0,0.00019476,2]
[360699216,1746937841750,-400.0,0.00019476,2]
[360699217,1746937841760,-400.0,0.00019476,2]
[360699218,1746937841769,-400.0,0.00019476,2]
[360699219,1746937841779,-400.0,0.00019476,2]
[360699220,1746937841788,-400.0,0.00019476,2]
[360699221,1746937841797,-400.0,0.00019476,2]
[360699222,1746937841807,-400.0,0.00019476,2]